[Event "Live Chess"]
[Site "Chess.com"]
[Date "2024.06.02"]
[Round "-"]
[White "elephantgerrald"]
[Black "Duke_of_Bebington"]
[Result "1-0"]
[WhiteElo "852"]
[BlackElo "1682"]
[TimeControl "300"]
[EndTime "0:53:40 PDT"]
[Termination "elephantgerrald won by checkmate"]

1. e4 {[%clk 0:04:57.5]} 1... e5 {[%clk 0:04:41.9]} 2. Nf3 {[%clk 0:04:55.4]}
2... Nf6 {[%clk 0:04:40.1]} 3. Nxe5 {[%clk 0:04:53.8]} 3... d6 {[%clk
0:04:39.2]} 4. Nf3 {[%clk 0:04:51.9]} 4... Nxe4 {[%clk 0:04:38.7]} 5. Qe2 {[%clk
0:04:51.1]} 5... Qe7 {[%clk 0:04:37.6]} 6. d3 {[%clk 0:04:49.7]} 6... Nf6 {[%clk
0:04:36.6]} 7. Qxe7+ {[%clk 0:04:48.5]} 7... Bxe7 {[%clk 0:04:35.7]} 8. Nc3
{[%clk 0:04:47.6]} 8... O-O {[%clk 0:04:35.2]} 9. Bg5 {[%clk 0:04:46.5]} 9...
Bg4 {[%clk 0:04:30.8]} 10. Be2 {[%clk 0:04:43.8]} 10... Nbd7 {[%clk 0:04:20.2]}
11. O-O {[%clk 0:04:40.2]} 11... Rfe8 {[%clk 0:04:18.9]} 12. Rfe1 {[%clk
0:04:33.8]} 12... d5 {[%clk 0:04:06.5]} 13. Bxf6 {[%clk 0:04:31.5]} 13... Nxf6
{[%clk 0:04:03.1]} 14. Ne5 {[%clk 0:04:27.1]} 14... Bxe2 {[%clk 0:03:55.5]} 15.
Rxe2 {[%clk 0:04:24.4]} 15... Bd6 {[%clk 0:03:54.7]} 16. d4 {[%clk 0:04:20.3]}
16... c5 {[%clk 0:03:51.4]} 17. Nb5 {[%clk 0:04:14.2]} 17... Bb8 {[%clk
0:03:47.2]} 18. c3 {[%clk 0:04:05.3]} 18... a6 {[%clk 0:03:44.5]} 19. Na3 {[%clk
0:03:59.5]} 19... Ba7 {[%clk 0:03:39.3]} 20. dxc5 {[%clk 0:03:56]} 20... Bxc5
{[%clk 0:03:37.9]} 21. b4 {[%clk 0:03:53.8]} 21... Ba7 {[%clk 0:03:16.9]} 22. c4
{[%clk 0:03:46.8]} 22... Bd4 {[%clk 0:02:49.5]} 23. Rae1 {[%clk 0:03:32.6]}
23... Ne4 {[%clk 0:02:48.1]} 24. cxd5 {[%clk 0:03:25.1]} 24... Nxf2 {[%clk
0:02:37.5]} 25. Kf1 {[%clk 0:03:15.9]} 25... Bxe5 {[%clk 0:02:26.8]} 26. Kxf2
{[%clk 0:03:10.5]} 26... Bd4+ {[%clk 0:02:11.9]} 27. Kf1 {[%clk 0:03:07.6]}
27... Rxe2 {[%clk 0:02:10.2]} 28. Rxe2 {[%clk 0:03:05.1]} 28... Rd8 {[%clk
0:02:04.6]} 29. Nb1 {[%clk 0:02:54.3]} 29... Rxd5 {[%clk 0:01:59.3]} 30. Re8#
{[%clk 0:02:52.8]} 1-0

[Event "Live Chess"]
[Site "Chess.com"]
[Date "2024.06.02"]
[Round "-"]
[White "wadsy27"]
[Black "NAZRIZ1977"]
[Result "1-0"]
[WhiteElo "2579"]
[BlackElo "2127"]
[TimeControl "300"]
[EndTime "0:53:54 PDT"]
[Termination "wadsy27 won by resignation"]

1. c4 {[%clk 0:04:58.2]} 1... g6 {[%clk 0:04:57.2]} 2. g3 {[%clk 0:04:57.5]}
2... Bg7 {[%clk 0:04:56.3]} 3. Bg2 {[%clk 0:04:57.2]} 3... Nf6 {[%clk
0:04:55.8]} 4. Nc3 {[%clk 0:04:57]} 4... O-O {[%clk 0:04:55.2]} 5. Nf3 {[%clk
0:04:56.9]} 5... c5 {[%clk 0:04:54.7]} 6. O-O {[%clk 0:04:56.4]} 6... d5 {[%clk
0:04:54.2]} 7. cxd5 {[%clk 0:04:53.6]} 7... Nxd5 {[%clk 0:04:53.1]} 8. Nxd5
{[%clk 0:04:53.4]} 8... Qxd5 {[%clk 0:04:52]} 9. d3 {[%clk 0:04:53.2]} 9... Qh5
{[%clk 0:04:50.9]} 10. Be3 {[%clk 0:04:51.2]} 10... Nc6 {[%clk 0:04:48.4]} 11.
Rc1 {[%clk 0:04:50.3]} 11... b6 {[%clk 0:04:45.3]} 12. d4 {[%clk 0:04:49.4]}
12... Nxd4 {[%clk 0:04:42]} 13. Nxd4 {[%clk 0:04:48]} 13... cxd4 {[%clk
0:04:41.4]} 14. Bxd4 {[%clk 0:04:45.7]} 14... Bh3 {[%clk 0:04:33.8]} 15. Bxg7
{[%clk 0:04:43.1]} 15... Kxg7 {[%clk 0:04:31.4]} 16. Bxa8 {[%clk 0:04:32.4]}
16... Rxa8 {[%clk 0:04:29]} 17. Qd4+ {[%clk 0:04:26.8]} 17... e5 {[%clk
0:04:27.7]} 18. Qe4 {[%clk 0:04:24.6]} 18... Bxf1 {[%clk 0:04:22.8]} 19. Qxa8
{[%clk 0:03:57]} 19... Bxe2 {[%clk 0:04:21.3]} 20. Rc8 {[%clk 0:03:56]} 20...
Bf3 {[%clk 0:03:44.4]} 21. Rg8+ {[%clk 0:03:54.6]} 21... Kh6 {[%clk 0:03:43.3]}
22. Qf8+ {[%clk 0:03:53.4]} 22... Kg5 {[%clk 0:03:41.1]} 23. Qxf7 {[%clk
0:03:35.9]} 23... Qh3 {[%clk 0:03:36.8]} 24. Qe7+ {[%clk 0:03:35]} 24... Kh6
{[%clk 0:03:31.4]} 25. Qh4+ {[%clk 0:03:34]} 1-0

[Event "Live Chess"]
[Site "Chess.com"]
[Date "2024.06.02"]
[Round "-"]
[White "Crowded_House"]
[Black "athen-nohj"]
[Result "1-0"]
[WhiteElo "1670"]
[BlackElo "1401"]
[TimeControl "300"]
[EndTime "0:54:12 PDT"]
[Termination "Crowded_House won on time"]

1. d4 {[%clk 0:04:57.6]} 1... Nf6 {[%clk 0:04:56.8]} 2. Bg5 {[%clk 0:04:56.8]}
2... e6 {[%clk 0:04:56.1]} 3. e3 {[%clk 0:04:55.7]} 3... Be7 {[%clk 0:04:54.9]}
4. Bd3 {[%clk 0:04:53.4]} 4... d5 {[%clk 0:04:54.3]} 5. Nd2 {[%clk 0:04:51.1]}
5... c5 {[%clk 0:04:53.3]} 6. c3 {[%clk 0:04:49.5]} 6... c4 {[%clk 0:04:51.2]}
7. Bc2 {[%clk 0:04:48.5]} 7... Nc6 {[%clk 0:04:49.4]} 8. b3 {[%clk 0:04:47.9]}
8... b5 {[%clk 0:04:48.3]} 9. b4 {[%clk 0:04:46.9]} 9... a5 {[%clk 0:04:46.9]}
10. a3 {[%clk 0:04:45.7]} 10... a4 {[%clk 0:04:44.1]} 11. Ngf3 {[%clk
0:04:42.2]} 11... O-O {[%clk 0:04:42.2]} 12. O-O {[%clk 0:04:40.5]} 12... Ng4
{[%clk 0:04:39.7]} 13. Bxe7 {[%clk 0:04:38.7]} 13... Qxe7 {[%clk 0:04:39.2]} 14.
h3 {[%clk 0:04:38.1]} 14... Nf6 {[%clk 0:04:36.1]} 15. Qb1 {[%clk 0:04:37.8]}
15... e5 {[%clk 0:04:29.2]} 16. dxe5 {[%clk 0:04:36]} 16... Nxe5 {[%clk
0:04:28.2]} 17. Nxe5 {[%clk 0:04:35.4]} 17... Qxe5 {[%clk 0:04:27.8]} 18. Qb2
{[%clk 0:04:29.4]} 18... Nh5 {[%clk 0:04:09.7]} 19. Nf3 {[%clk 0:04:26.7]} 19...
Qf6 {[%clk 0:04:00.3]} 20. Kh2 {[%clk 0:04:13.5]} 20... Bf5 {[%clk 0:03:36.5]}
21. Bxf5 {[%clk 0:03:52.9]} 21... Qxf5 {[%clk 0:03:36.4]} 22. Qb1 {[%clk
0:03:45.6]} 22... Qe6 {[%clk 0:03:16.2]} 23. Qd1 {[%clk 0:03:35.9]} 23... Rad8
{[%clk 0:03:10]} 24. Qd4 {[%clk 0:03:33.8]} 24... Qd6+ {[%clk 0:02:57.3]} 25.
Kh1 {[%clk 0:03:25.6]} 25... Rfe8 {[%clk 0:02:56.1]} 26. Rad1 {[%clk 0:03:21.2]}
26... Re4 {[%clk 0:02:53.5]} 27. Qd2 {[%clk 0:03:11.8]} 27... Qf6 {[%clk
0:02:26.6]} 28. Nd4 {[%clk 0:02:55.8]} 28... Qh4 {[%clk 0:01:45.9]} 29. Qe2
{[%clk 0:02:44.8]} 29... Rde8 {[%clk 0:01:32.5]} 30. Nf3 {[%clk 0:02:43.2]}
30... Qf6 {[%clk 0:01:08.3]} 31. Nd4 {[%clk 0:02:28]} 31... Rxe3 {[%clk
0:00:53.9]} 32. fxe3 {[%clk 0:02:23.4]} 32... Ng3+ {[%clk 0:00:52.4]} 33. Kg1
{[%clk 0:02:19.4]} 33... Nxe2+ {[%clk 0:00:40.5]} 34. Nxe2 {[%clk 0:02:17.9]}
34... Qh6 {[%clk 0:00:31.9]} 35. Rf3 {[%clk 0:02:13.6]} 35... Rxe3 {[%clk
0:00:30.2]} 36. Rxe3 {[%clk 0:02:06.2]} 36... Qxe3+ {[%clk 0:00:30.1]} 37. Kf1
{[%clk 0:02:05.2]} 37... Qe4 {[%clk 0:00:18.8]} 38. Rd4 {[%clk 0:02:00.6]} 38...
Qb1+ {[%clk 0:00:17.3]} 39. Kf2 {[%clk 0:01:59.3]} 39... Qa2 {[%clk 0:00:16.5]}
40. Rxd5 {[%clk 0:01:56.7]} 40... h6 {[%clk 0:00:16.2]} 41. Rxb5 {[%clk
0:01:55.6]} 41... Qxa3 {[%clk 0:00:14.9]} 42. Rc5 {[%clk 0:01:51.4]} 42... Qb3
{[%clk 0:00:13.6]} 43. Ra5 {[%clk 0:01:49.7]} 43... Qa2 {[%clk 0:00:12.2]} 44.
Kf3 {[%clk 0:01:47]} 44... Qd2 {[%clk 0:00:11]} 45. Rxa4 {[%clk 0:01:44.6]}
45... Qd5+ {[%clk 0:00:10.5]} 46. Kf2 {[%clk 0:01:42.6]} 46... Qd2 {[%clk
0:00:09.5]} 47. Kf3 {[%clk 0:01:41.1]} 47... Qd5+ {[%clk 0:00:08.5]} 48. Kf2
{[%clk 0:01:40.5]} 48... Qd2 {[%clk 0:00:08.2]} 49. Kf1 {[%clk 0:01:38.6]} 49...
Qd1+ {[%clk 0:00:07.3]} 50. Kf2 {[%clk 0:01:37.1]} 50... Qxa4 {[%clk 0:00:03.8]}
51. Ke3 {[%clk 0:01:35.2]} 51... Qa7+ {[%clk 0:00:03.3]} 52. Kd2 {[%clk
0:01:34.1]} 52... Qd7+ {[%clk 0:00:02.9]} 53. Nd4 {[%clk 0:01:32.7]} 53... Qxd4+
{[%clk 0:00:02.1]} 54. cxd4 {[%clk 0:01:31.4]} 54... Kf8 {[%clk 0:00:01.8]} 55.
Kc3 {[%clk 0:01:31]} 55... Ke7 {[%clk 0:00:01.7]} 56. Kxc4 {[%clk 0:01:30.6]}
56... Kd6 {[%clk 0:00:01.6]} 57. b5 {[%clk 0:01:30.1]} 57... Kc7 {[%clk
0:00:01.5]} 58. g3 {[%clk 0:01:29.3]} 58... Kb6 {[%clk 0:00:01.4]} 59. d5 {[%clk
0:01:28.6]} 59... Kc7 {[%clk 0:00:01.3]} 60. Kc5 {[%clk 0:01:27.6]} 60... Kb7
{[%clk 0:00:00.4]} 61. b6 {[%clk 0:01:27.2]} 1-0

[Event "Live Chess"]
[Site "Chess.com"]
[Date "2024.06.02"]
[Round "-"]
[White "Jadmis_2011"]
[Black "jimwad"]
[Result "1-0"]
[WhiteElo "1465"]
[BlackElo "1327"]
[TimeControl "300"]
[EndTime "0:55:05 PDT"]
[Termination "Jadmis_2011 won by resignation"]

1. e4 {[%clk 0:04:59.1]} 1... e5 {[%clk 0:04:58.8]} 2. Nf3 {[%clk 0:04:55.6]}
2... Nc6 {[%clk 0:04:57.5]} 3. Bc4 {[%clk 0:04:54.6]} 3... Bc5 {[%clk 0:04:56]}
4. Nc3 {[%clk 0:04:54.1]} 4... Nf6 {[%clk 0:04:54.8]} 5. d3 {[%clk 0:04:53.8]}
5... h6 {[%clk 0:04:53.8]} 6. O-O {[%clk 0:04:52.9]} 6... O-O {[%clk 0:04:52.3]}
7. h3 {[%clk 0:04:52.2]} 7... d6 {[%clk 0:04:50.8]} 8. Re1 {[%clk 0:04:51.9]}
8... a6 {[%clk 0:04:49.6]} 9. Be3 {[%clk 0:04:49.3]} 9... b5 {[%clk 0:04:40.6]}
10. Bxc5 {[%clk 0:04:25.8]} 10... dxc5 {[%clk 0:04:38.7]} 11. Bd5 {[%clk
0:04:21.2]} 11... Nxd5 {[%clk 0:04:36.8]} 12. exd5 {[%clk 0:04:15.6]} 12... Nd4
{[%clk 0:04:25]} 13. Rxe5 {[%clk 0:04:07.1]} 13... Bb7 {[%clk 0:04:09.4]} 14.
Nxd4 {[%clk 0:03:56.7]} 14... cxd4 {[%clk 0:04:07.9]} 15. Ne2 {[%clk 0:03:51.4]}
15... Qf6 {[%clk 0:03:58.4]} 16. Re4 {[%clk 0:03:29.6]} 16... c5 {[%clk
0:03:53.3]} 17. Nf4 {[%clk 0:03:06.4]} 17... Rad8 {[%clk 0:03:44.4]} 18. Qh5
{[%clk 0:02:45.7]} 18... Qg5 {[%clk 0:03:15.5]} 19. Qxg5 {[%clk 0:02:28]} 19...
hxg5 {[%clk 0:03:13.8]} 20. Ne2 {[%clk 0:02:18.9]} 20... Bxd5 {[%clk 0:03:12]}
21. Re5 {[%clk 0:02:17.3]} 21... f6 {[%clk 0:03:09.7]} 22. Re7 {[%clk
0:02:12.3]} 22... Rde8 {[%clk 0:03:04.6]} 23. Rxe8 {[%clk 0:02:07.8]} 23... Rxe8
{[%clk 0:03:03.7]} 24. Ng3 {[%clk 0:02:05.1]} 24... Kf7 {[%clk 0:02:53.7]} 25.
b3 {[%clk 0:01:52.4]} 25... g6 {[%clk 0:02:52.3]} 26. a4 {[%clk 0:01:45.4]}
26... b4 {[%clk 0:02:49.1]} 27. Kf1 {[%clk 0:01:39.9]} 27... a5 {[%clk
0:02:46.7]} 28. f3 {[%clk 0:01:38.6]} 28... f5 {[%clk 0:02:42.3]} 29. Re1 {[%clk
0:01:36.2]} 29... Rxe1+ {[%clk 0:02:11.4]} 30. Kxe1 {[%clk 0:01:36.1]} 30... f4
{[%clk 0:02:09.5]} 31. Ne4 {[%clk 0:01:33.2]} 31... Bxe4 {[%clk 0:02:07.8]} 32.
fxe4 {[%clk 0:01:27]} 32... Kf6 {[%clk 0:02:02.8]} 33. Kf2 {[%clk 0:01:24.9]}
33... Ke5 {[%clk 0:01:56.9]} 34. Kf3 {[%clk 0:01:22]} 34... Kf6 {[%clk
0:01:46.2]} 35. Kg4 {[%clk 0:01:19.3]} 35... Ke6 {[%clk 0:01:41]} 36. Kxg5
{[%clk 0:01:17.6]} 36... Kf7 {[%clk 0:01:39.3]} 37. Kxf4 {[%clk 0:01:16.3]}
37... Kf6 {[%clk 0:01:38.5]} 38. g4 {[%clk 0:01:15.5]} 38... g5+ {[%clk
0:01:37.1]} 39. Kg3 {[%clk 0:01:13.1]} 39... Ke5 {[%clk 0:01:36.2]} 40. h4
{[%clk 0:01:11.3]} 40... gxh4+ {[%clk 0:01:35.1]} 41. Kxh4 {[%clk 0:01:11.2]}
41... Kf6 {[%clk 0:01:33.4]} 42. g5+ {[%clk 0:01:10.2]} 42... Kg6 {[%clk
0:01:32.5]} 43. Kg4 {[%clk 0:01:10.1]} 43... Kg7 {[%clk 0:01:31.2]} 44. Kf5
{[%clk 0:01:09.6]} 44... Kf7 {[%clk 0:01:29.6]} 45. g6+ {[%clk 0:01:08.6]} 45...
Kg7 {[%clk 0:01:28.7]} 46. Kg5 {[%clk 0:01:07.5]} 46... Kg8 {[%clk 0:01:27]} 47.
Kf6 {[%clk 0:01:06.9]} 47... Kf8 {[%clk 0:01:26.4]} 48. g7+ {[%clk 0:01:05.8]}
48... Kg8 {[%clk 0:01:25.5]} 49. Ke6 {[%clk 0:00:55.4]} 49... Kxg7 {[%clk
0:01:24.3]} 50. Kd5 {[%clk 0:00:55.1]} 50... Kf6 {[%clk 0:01:23.7]} 51. Kxc5
{[%clk 0:00:54.7]} 51... Ke5 {[%clk 0:01:22.9]} 52. Kb5 {[%clk 0:00:52.6]} 52...
Kd6 {[%clk 0:01:22]} 53. Kxa5 {[%clk 0:00:52.5]} 53... Kc5 {[%clk 0:01:21.1]}
54. Ka6 {[%clk 0:00:51.4]} 54... Kc6 {[%clk 0:01:19.5]} 55. e5 {[%clk 0:00:51]}
55... Kd5 {[%clk 0:01:18.2]} 56. Kb5 {[%clk 0:00:50.5]} 56... Kxe5 {[%clk
0:01:17.6]} 57. Kxb4 {[%clk 0:00:50.4]} 57... Kd5 {[%clk 0:01:16.9]} 58. Kb5
{[%clk 0:00:49.6]} 58... Kd6 {[%clk 0:01:15.1]} 59. Kb6 {[%clk 0:00:48.8]} 59...
Kd5 {[%clk 0:01:13.8]} 60. a5 {[%clk 0:00:48.1]} 60... Kd6 {[%clk 0:01:11.3]}
61. a6 {[%clk 0:00:47.6]} 1-0

[Event "Live Chess"]
[Site "Chess.com"]
[Date "2024.06.02"]
[Round "-"]
[White "JanMur7"]
[Black "MaksymYurii"]
[Result "1-0"]
[WhiteElo "2254"]
[BlackElo "960"]
[TimeControl "300"]
[EndTime "0:55:08 PDT"]
[Termination "JanMur7 won by checkmate"]

1. c4 {[%clk 0:04:58.9]} 1... e5 {[%clk 0:04:58.7]} 2. Nc3 {[%clk 0:04:57.9]}
2... Nc6 {[%clk 0:04:57.9]} 3. Nf3 {[%clk 0:04:57.3]} 3... Bc5 {[%clk
0:04:53.9]} 4. e4 {[%clk 0:04:55]} 4... Nf6 {[%clk 0:04:51.2]} 5. Nxe5 {[%clk
0:04:53.9]} 5... Nxe5 {[%clk 0:04:33.7]} 6. d4 {[%clk 0:04:52.2]} 6... Bxd4
{[%clk 0:04:13]} 7. Qxd4 {[%clk 0:04:52.1]} 7... Nc6 {[%clk 0:04:11.5]} 8. Qd1
{[%clk 0:04:49.9]} 8... O-O {[%clk 0:04:08.4]} 9. Be2 {[%clk 0:04:48.4]} 9...
Re8 {[%clk 0:04:07.2]} 10. f3 {[%clk 0:04:47.3]} 10... d6 {[%clk 0:04:01.7]} 11.
O-O {[%clk 0:04:45.9]} 11... Nh5 {[%clk 0:03:51.8]} 12. Nd5 {[%clk 0:04:41.1]}
12... Be6 {[%clk 0:03:38.9]} 13. Be3 {[%clk 0:04:36.5]} 13... Bxd5 {[%clk
0:03:36.9]} 14. cxd5 {[%clk 0:04:35.2]} 14... Ne7 {[%clk 0:03:30.9]} 15. Bd4
{[%clk 0:04:28.3]} 15... g6 {[%clk 0:03:19.6]} 16. Rc1 {[%clk 0:04:23.5]} 16...
c6 {[%clk 0:03:16.1]} 17. dxc6 {[%clk 0:04:20.7]} 17... Nxc6 {[%clk 0:03:14.6]}
18. Bf2 {[%clk 0:04:16.5]} 18... Nf4 {[%clk 0:02:55]} 19. Bc4 {[%clk 0:04:13.9]}
19... Ne5 {[%clk 0:02:47.1]} 20. Bg3 {[%clk 0:04:05.7]} 20... Nxc4 {[%clk
0:02:18.9]} 21. Rxc4 {[%clk 0:04:05.6]} 21... Rc8 {[%clk 0:02:08.4]} 22. Rxc8
{[%clk 0:03:57.7]} 22... Qxc8 {[%clk 0:02:06]} 23. Bxf4 {[%clk 0:03:57]} 23...
Qc5+ {[%clk 0:01:57.7]} 24. Kh1 {[%clk 0:03:55.3]} 24... d5 {[%clk 0:01:54.6]}
25. Qxd5 {[%clk 0:03:53.5]} 25... Qxd5 {[%clk 0:01:49]} 26. exd5 {[%clk
0:03:53.4]} 26... Re2 {[%clk 0:01:43.7]} 27. d6 {[%clk 0:03:50.8]} 27... Rxb2
{[%clk 0:01:42.4]} 28. d7 {[%clk 0:03:49.7]} 28... Rb4 {[%clk 0:01:39.2]} 29.
d8=Q+ {[%clk 0:03:48.1]} 29... Kg7 {[%clk 0:01:36.8]} 30. Be5+ {[%clk
0:03:47.7]} 30... Kh6 {[%clk 0:01:35.6]} 31. Qf8+ {[%clk 0:03:44.9]} 31... Kg5
{[%clk 0:01:34]} 32. Qxb4 {[%clk 0:03:44.7]} 32... Kf5 {[%clk 0:01:32.5]} 33.
Qf4+ {[%clk 0:03:44.1]} 33... Ke6 {[%clk 0:01:31]} 34. Qf6+ {[%clk 0:03:44]}
34... Kd5 {[%clk 0:01:29.9]} 35. Rd1+ {[%clk 0:03:43.9]} 35... Kc4 {[%clk
0:01:28.7]} 36. Qd6 {[%clk 0:03:43.8]} 36... Kb5 {[%clk 0:01:27.7]} 37. Rb1+
{[%clk 0:03:42.7]} 37... Kc4 {[%clk 0:01:26.6]} 38. Qd4# {[%clk 0:03:40]} 1-0

[Event "Live Chess"]
[Site "Chess.com"]
[Date "2024.06.02"]
[Round "-"]
[White "MagnersCarlsberg2870"]
[Black "wadsy27"]
[Result "0-1"]
[WhiteElo "1807"]
[BlackElo "2579"]
[TimeControl "300"]
[EndTime "0:56:17 PDT"]
[Termination "wadsy27 won by resignation"]

1. d4 {[%clk 0:04:55]} 1... d5 {[%clk 0:04:58.5]} 2. e3 {[%clk 0:04:52.7]} 2...
Nf6 {[%clk 0:04:57.4]} 3. Bd3 {[%clk 0:04:51.7]} 3... c6 {[%clk 0:04:56]} 4. Nd2
{[%clk 0:04:50.2]} 4... Bg4 {[%clk 0:04:55]} 5. f3 {[%clk 0:04:49.2]} 5... Bh5
{[%clk 0:04:54.4]} 6. Ne2 {[%clk 0:04:48.5]} 6... Bg6 {[%clk 0:04:53.6]} 7. Nf4
{[%clk 0:04:45.8]} 7... e6 {[%clk 0:04:52.7]} 8. Qe2 {[%clk 0:04:42.8]} 8... Bd6
{[%clk 0:04:52.3]} 9. Nxg6 {[%clk 0:04:40.8]} 9... hxg6 {[%clk 0:04:51.4]} 10.
h3 {[%clk 0:04:38.6]} 10... Nh5 {[%clk 0:04:48.7]} 11. O-O {[%clk 0:04:33.8]}
11... Ng3 {[%clk 0:04:47.6]} 12. Qf2 {[%clk 0:04:32.9]} 12... Nxf1 {[%clk
0:04:46.9]} 13. Nxf1 {[%clk 0:04:31.1]} 13... Qh4 {[%clk 0:04:45.7]} 14. Qe2
{[%clk 0:04:26.6]} 14... Nd7 {[%clk 0:04:44.8]} 15. e4 {[%clk 0:04:25.7]} 15...
dxe4 {[%clk 0:04:35.1]} 16. fxe4 {[%clk 0:04:24.7]} 16... e5 {[%clk 0:04:26.9]}
17. Bc4 {[%clk 0:04:13.1]} 17... exd4 {[%clk 0:04:23.8]} 18. e5 {[%clk 0:04:12]}
18... Nxe5 {[%clk 0:04:20.3]} 19. Bd2 {[%clk 0:03:52.3]} 19... O-O-O {[%clk
0:04:18.9]} 20. Bxf7 {[%clk 0:03:45.8]} 20... Nxf7 {[%clk 0:04:17.6]} 21. Qe6+
{[%clk 0:03:43.2]} 21... Rd7 {[%clk 0:04:17]} 22. Qf6 {[%clk 0:03:38.8]} 22...
Qxf6 {[%clk 0:04:16]} 0-1

[Event "Live Chess"]
[Site "Chess.com"]
[Date "2024.06.02"]
[Round "-"]
[White "ProfPoisson"]
[Black "SimonBoy1"]
[Result "0-1"]
[WhiteElo "1335"]
[BlackElo "1530"]
[TimeControl "300"]
[EndTime "0:56:26 PDT"]
[Termination "SimonBoy1 won by resignation"]

1. e4 {[%clk 0:04:55.7]} 1... c5 {[%clk 0:04:59]} 2. Nc3 {[%clk 0:04:53]} 2...
Nc6 {[%clk 0:04:57.5]} 3. f4 {[%clk 0:04:46.1]} 3... e6 {[%clk 0:04:54.1]} 4.
Nf3 {[%clk 0:04:42.9]} 4... Nge7 {[%clk 0:04:53.6]} 5. Bb5 {[%clk 0:04:38.1]}
5... d5 {[%clk 0:04:52.9]} 6. Bxc6+ {[%clk 0:04:35.6]} 6... bxc6 {[%clk
0:04:48.3]} 7. e5 {[%clk 0:04:21.7]} 7... Nf5 {[%clk 0:04:43.8]} 8. O-O {[%clk
0:04:19.5]} 8... Be7 {[%clk 0:04:27.4]} 9. b3 {[%clk 0:04:17.5]} 9... c4 {[%clk
0:04:25.7]} 10. bxc4 {[%clk 0:04:12.4]} 10... Ba6 {[%clk 0:04:21.6]} 11. d3
{[%clk 0:04:01.6]} 11... d4 {[%clk 0:04:20.6]} 12. Ne2 {[%clk 0:03:54.8]} 12...
c5 {[%clk 0:04:14.8]} 13. c3 {[%clk 0:03:37.3]} 13... O-O {[%clk 0:04:06.3]} 14.
cxd4 {[%clk 0:03:29.7]} 14... cxd4 {[%clk 0:04:06.2]} 15. Bb2 {[%clk 0:03:25.3]}
15... Ne3 {[%clk 0:04:04.4]} 16. Qe1 {[%clk 0:03:14.2]} 16... Nxf1 {[%clk
0:03:48.8]} 17. Qxf1 {[%clk 0:03:10.1]} 17... Qb6 {[%clk 0:03:27.6]} 18. Bxd4
{[%clk 0:03:04.6]} 18... Bc5 {[%clk 0:03:24.9]} 19. Rb1 {[%clk 0:02:58.9]} 19...
Bxd4+ {[%clk 0:03:19.2]} 20. Nexd4 {[%clk 0:02:55.6]} 20... Qa5 {[%clk
0:03:16.2]} 21. Nc6 {[%clk 0:02:39.6]} 21... Qxa2 {[%clk 0:03:09.9]} 22. Nfd4
{[%clk 0:02:29.1]} 22... Qd2 {[%clk 0:02:53.3]} 23. Ne7+ {[%clk 0:02:18.5]}
23... Kh8 {[%clk 0:02:51.5]} 24. Ndc6 {[%clk 0:02:16.9]} 24... Qe3+ {[%clk
0:02:31.8]} 25. Kh1 {[%clk 0:02:09]} 25... Qc5 {[%clk 0:02:23.3]} 26. Qf3 {[%clk
0:01:57.7]} 26... Rae8 {[%clk 0:02:13.6]} 27. Ra1 {[%clk 0:01:21.1]} 27... Bb7
{[%clk 0:01:52.8]} 28. Ra5 {[%clk 0:01:09.4]} 28... Qb6 {[%clk 0:01:48.3]} 29.
Rb5 {[%clk 0:00:52.5]} 29... Qa6 {[%clk 0:01:41.1]} 30. h4 {[%clk 0:00:47.6]}
30... Rxe7 {[%clk 0:01:36.8]} 31. Rxb7 {[%clk 0:00:17.6]} 31... Rxb7 {[%clk
0:01:30.3]} 32. Qh5 {[%clk 0:00:13.8]} 32... Qxc6 {[%clk 0:01:24.6]} 33. Kh2
{[%clk 0:00:11.5]} 33... Rb2 {[%clk 0:01:22.8]} 0-1

[Event "Live Chess"]
[Site "Chess.com"]
[Date "2024.06.02"]
[Round "-"]
[White "willc-h99"]
[Black "RG_ChessLegend"]
[Result "1-0"]
[WhiteElo "2628"]
[BlackElo "1524"]
[TimeControl "300"]
[EndTime "0:56:30 PDT"]
[Termination "willc-h99 won by resignation"]

1. d4 {[%clk 0:04:58]} 1... Nf6 {[%clk 0:04:59]} 2. Bg5 {[%clk 0:04:57.1]} 2...
g6 {[%clk 0:04:56.8]} 3. e3 {[%clk 0:04:53]} 3... Bg7 {[%clk 0:04:55.9]} 4. Nf3
{[%clk 0:04:52]} 4... O-O {[%clk 0:04:54.6]} 5. Be2 {[%clk 0:04:50.7]} 5... d6
{[%clk 0:04:53.9]} 6. O-O {[%clk 0:04:49.2]} 6... Bg4 {[%clk 0:04:52.9]} 7. h3
{[%clk 0:04:47.7]} 7... Bxf3 {[%clk 0:04:51.1]} 8. Bxf3 {[%clk 0:04:46.9]} 8...
c6 {[%clk 0:04:50.8]} 9. c4 {[%clk 0:04:42.9]} 9... Nbd7 {[%clk 0:04:48.5]} 10.
Nc3 {[%clk 0:04:41]} 10... Rc8 {[%clk 0:04:47]} 11. Qc2 {[%clk 0:04:20.2]} 11...
h6 {[%clk 0:04:43.2]} 12. Bh4 {[%clk 0:04:18]} 12... d5 {[%clk 0:04:36]} 13. c5
{[%clk 0:04:14.1]} 13... b6 {[%clk 0:04:31.7]} 14. b4 {[%clk 0:04:11.6]} 14...
b5 {[%clk 0:04:28.1]} 15. a4 {[%clk 0:04:09.4]} 15... bxa4 {[%clk 0:04:25.4]}
16. Rxa4 {[%clk 0:04:07.1]} 16... Ra8 {[%clk 0:04:22.3]} 17. Rfa1 {[%clk
0:04:05.3]} 17... g5 {[%clk 0:04:19.8]} 18. Bg3 {[%clk 0:04:04.2]} 18... a5
{[%clk 0:04:04.7]} 19. Rxa5 {[%clk 0:03:58.1]} 19... Ra6 {[%clk 0:04:02.4]} 20.
Rxa6 {[%clk 0:03:56.9]} 1-0